Cogmind - Beta 15 --- EXPLORER MODE // 2025.06.19 @ 12:39:40 Player: sussyscylla Result: Self-destructed Performance ------------- Evolutions (0) 0 Regions Visited (3) 600 Robots Destroyed (8) 40 Value Destroyed (106) 106 Prototype IDs (0) 0 Alien Tech Used (0) 0 Bonus (800) 800 TOTAL SCORE: 1546 Bonus ------- Registered with UFD 300 Met Optimus in HQ 500 Cogmind --------- Core Integrity 209/250 Matter 290/300 Energy 250/250 System Corruption 0% Temperature Cool (0) Movement Walking (190) Ox1 Location -7/Scraptown Parts ------- > --- POWER (1) -------- Ion Engine > --- PROPULSION (2) --- Carbon-fiber Leg Carbon-fiber Leg > --- UTILITY (3) ------ Medium Storage Unit Medium Armor Plating Medium Armor Plating > --- WEAPON (2) ------- Light Assault Rifle Powered Hammer > --- INVENTORY (10) --- Aluminum Leg High-capacity Storage Unit Structural Scanner Medium Armor Plating Hacking Suite EM Shotgun Light Assault Rifle Light Cannon Long-range Missile Launcher Peak State ------------ > --- POWER ------------ Ion Engine > --- PROPULSION ------- Carbon-fiber Leg Carbon-fiber Leg > --- UTILITY ---------- Medium Storage Unit Medium Armor Plating Medium Armor Plating > --- WEAPON ----------- Light Assault Rifle Powered Hammer > --- INVENTORY -------- Aluminum Leg High-capacity Storage Unit Structural Scanner Medium Armor Plating Hacking Suite EM Shotgun Light Assault Rifle Light Cannon Long-range Missile Launcher [Rating: 18] Favorites ----------- Power Ion Engine Engine Ion Engine Propulsion Aluminum Leg Leg Aluminum Leg Utility Medium Armor Plating Device Tractor Beam Storage Medium Storage Unit Protection Medium Armor Plating Weapon Light Assault Rifle Energy Gun EM Pulse Gun Ballistic Gun Light Assault Rifle Ballistic Cannon Light Cannon Impact Weapon Powered Hammer Build | -11 -10 -10 -7 ------- Run | Yrd Mat Sub Scr Slots Evolved 1 | . 1 . . Power . | . . . . Propulsion . | . . . . Utility 1 | . 1 . . Weapon . | . . . . Parts Attached 21 | 10 5 1 5 Power 3 | 2 1 . . Engine 3 | 2 1 . . Core . | . . . . Reactor . | . . . . Propulsion 5 | 2 . . 3 Treads . | . . . . Leg 5 | 2 . . 3 Wheel . | . . . . Hover . | . . . . Flight . | . . . . Utility 7 | 4 2 . 1 Device 2 | 1 1 . . Storage 1 | 1 . . . Processor . | . . . . Hackware . | . . . . Protection 4 | 2 1 . 1 Artifact . | . . . . Weapon 6 | 2 2 1 1 Energy Gun 2 | 2 . . . Energy Cannon . | . . . . Ballistic Gun 2 | . 2 . . Ballistic Cannon 1 | . . 1 . Launcher . | . . . . Special Weapon . | . . . . Impact Weapon 1 | . . . 1 Slashing Weapon . | . . . . Piercing Weapon . | . . . . Special Melee Weapon . | . . . . Unidentified Prototypes . | . . . . Parts Lost . | . . . . Power . | . . . . Propulsion . | . . . . Utility . | . . . . Weapon . | . . . . Highest Loss Streak . | . . . . To Critical Strikes . | . . . . Average Backups 9 | . 9 10 9 Power . | . . . . Propulsion 1 | . 1 2 1 Utility 4 | . 5 5 3 Weapon 3 | . 2 3 4 Tool/Special . | . . . . Unused Backups 15 | . 4 . 11 Power . | . . . . Propulsion 1 | . . . 1 Utility 7 | . 2 . 5 Weapon 7 | . 2 . 5 Tool/Special . | . . . . Average Slot Usage (%) 99 | . 99 100 99 Engine 11 | . 11 12 12 Leg 24 | . 24 25 25 Device 5 | . 12 12 1 Storage 12 | . 12 12 12 Protection 18 | . 12 12 23 Energy Gun 5 | . 14 12 . Ballistic Gun 10 | . 9 . 11 Ballistic Cannon 7 | . . 12 11 Peak Build Rating 18 | 7 10 10 18 Average Rating 11 | 4 9 10 13 On Entrance 6 | . 7 10 10 Naked Turns . | . . . . Heaviest Build 33 | 17 26 28 33 Greatest Support 30 | 20 20 20 30 Greatest Overweight (x) 3 | 3 1 1 1 Average Overweight (x) . | . . 1 . Largest Inventory Capacity 10 | 10 10 10 10 Average Capacity 9 | 9 10 10 10 Most Carried 10 | 3 10 10 10 Average Carried 9 | . 9 10 9 Final Capacity 10 | 10 10 10 10 Final Carried 10 | 3 10 10 9 Class Distribution -------------------- 100% | Hacker-Mutant Dominant Class ---------------- Hacker-Mutant | -10/Materials Hacker-Mutant | -10/Subcaves Hacker-Mutant | -7/Scraptown Resources | -11 -10 -10 -7 ----------- Run | Yrd Mat Sub Scr Matter Collected 447 | 300 65 . 82 Remotely 107 | . 65 . 42 Salvage Created 208 | 60 107 . 41 Parts 11 | 1 10 . . Haulers Intercepted . | . . . . Recyclers Shooed . | . . . . Parts Field Recycled . | . . . . Retrieved Matter . | . . . . Parts Self-Destructed . | . . . . Prevented . | . . . . Kills | -11 -10 -10 -7 ------- Run | Yrd Mat Sub Scr Combat Hostiles Destroyed 7 | . 6 . 1 Guns 5 | . 5 . . AOE 1 | . 1 . . Classes Destroyed 3 | 1 1 . 1 Recycler 1 | 1 . . . Swarmer 6 | . 6 . . Guru 1 | . . . 1 Best Kill Streak 2 | 1 2 . 1 Combat Bots Only 2 | . 2 . 1 Max Kills in Single Turn 1 | 1 1 . 1 Gunslinging . | . . . . Exploded 1 | . 1 . . Melee . | . . . . Uniques/NPCs Destroyed . | . . . . Combat | -11 -10 -10 -7 -------- Run | Yrd Mat Sub Scr Hostile Shots Fired 76 | . 35 . 41 Missed 29 | . 12 . 17 Hits 47 | . 23 . 24 Projectile 47 | . 23 . 24 Critical Strikes 1 | . . . 1 Damage Taken 374 | 24 128 . 222 Core 41 | . 14 . 27 Absorbed by Shields . | . . . . Ignored by Resistances 247 | 14 92 . 141 Core Remaining (%) 100 | 100 . . . Volleys Fired 16 | 3 13 . . Largest 2 | 2 2 . . Hottest 80 | 80 80 . . Shots Fired 32 | 6 26 . . Gun 32 | 6 26 . . Cannon . | . . . . Launcher . | . . . . Special . | . . . . Kinetic 10 | . 10 . . Thermal 6 | 3 3 . . Explosive . | . . . . Electromagnetic 16 | 3 13 . . Robot Hit Streak 16 | 5 16 . . Robot Miss Streak 1 | . 1 . . Penetration Max . | . . . . Secondary Targets . | . . . . Shots Hit Robots 25 | 5 18 . 2 Core Hits 8 | 2 6 . . Critical Kills . | . . . . Critical Parts Destroyed . | . . . . Critical Strikes . | . . . . Melee Attacks 3 | . . . 3 Impact 3 | . . . 3 Slashing . | . . . . Piercing . | . . . . Sneak Attacks . | . . . . Combat Hostiles . | . . . . Follow-up Attacks . | . . . . Damage Inflicted 426 | 88 241 . 97 Guns 255 | 59 196 . . Cannons . | . . . . Explosions 65 | 25 40 . . Melee 97 | . . . 97 Ramming 9 | 4 5 . . Kinetic 37 | . 37 . . Thermal 110 | 48 62 . . Explosive . | . . . . Electromagnetic 173 | 36 137 . . Impact 97 | . . . 97 Slashing . | . . . . Piercing . | . . . . Highest Corruption 1 | . 1 1 1 Average Corruption 1 | . 1 1 1 Corruption Purged . | . . . . Corruption Blocked . | . . . . Effects 3 | . 3 . . Message Errors 2 | . 2 . . Energy Discharges 1 | . 1 . . Overload Shots . | . . . . Overflow Damage 27 | . . . 27 Projectiles . | . . . . Explosions . | . . . . Melee 27 | . . . 27 Knockbacks 1 | . . . 1 Impact 1 | . . . 1 Kinetic . | . . . . Secondary . | . . . . Self-Inflicted Damage 46 | 24 22 . . Shots 2 | 1 1 . . Rammed . | . . . . Targets Rammed 3 | 1 2 . . Kicked 3 | 1 2 . . Crushed . | . . . . Highest Temperature 70 | 66 70 . 15 Average Temperature 27 | 36 27 . 7 Received Heat Transfer 153 | . . . 153 Siege Activations . | . . . . Martial Activations . | . . . . Shielding Activations . | . . . . Robots Disrupted . | . . . . Combat Hostiles . | . . . . Robots Corrupted 1 | . . . 1 Combat Hostiles 1 | . . . 1 Parts Fried 4 | . 1 . 3 Impact Corruptions 3 | . . . 3 Robots Melted . | . . . . Combat Hostiles . | . . . . Parts Melted . | . . . . Heat Transferred 150 | 100 50 . . Parts Sabotaged . | . . . . Parts Stolen . | . . . . Parts Stripped . | . . . . Power Chain Reactions 2 | 1 1 . . Alert | -11 -10 -10 -7 ------- Run | Yrd Mat Sub Scr Maximum Alert Level . | . . . . Low Security (%) 100 | 100 100 . . Level 1 . | . . . . Level 2 . | . . . . Level 3 . | . . . . Level 4 . | . . . . Level 5 . | . . . . High Security . | . . . . Max Security . | . . . . Peak Influence 50 | 5 50 . . Initial . | . . . . Average 2 | . 3 . . Influence Increases 157 | 5 152 . . Destroy 0b10 Robot/C 120 | . 120 . . Destroy 0b10 Robot/NC 5 | 5 . . . Destroy Leader 30 | . 30 . . Destroy Structure 2 | . 2 . . Influence Decreases 157 | 5 152 . . Time Decay 157 | 5 152 . . Squads Dispatched . | . . . . Investigation . | . . . . Extermination . | . . . . Reinforcement . | . . . . Assault . | . . . . Garrison . | . . . . Intercept . | . . . . Searches Triggered . | . . . . Construction Impeded . | . . . . Haulers Reinforced . | . . . . Active Scanning Responses . | . . . . Cargo Convoy Interrupts . | . . . . Stealth | -11 -10 -10 -7 --------- Run | Yrd Mat Sub Scr Distress Signals . | . . . . Communications Jammed . | . . . . Distress Signals . | . . . . Times Spotted 22 | . 12 . 10 Peak Tracking Total 4 | . 2 . 4 Tactical Retreats . | . . . . Traps | -11 -10 -10 -7 ------- Run | Yrd Mat Sub Scr Traps Triggered 4 | . 4 . . Indirectly . | . . . . Trap Hack Attempts . | . . . . Triggered . | . . . . Disarmed . | . . . . Reprogrammed . | . . . . Reused . | . . . . Traps Extracted . | . . . . Installed . | . . . . Triggered . | . . . . Machines | -11 -10 -10 -7 ---------- Run | Yrd Mat Sub Scr Machines Disabled 1 | . . . 1 Max in Single Turn 1 | . . . 1 Machines Repaired . | . . . . Machines Dismantled . | . . . . Machines Sabotaged . | . . . . Overloaded Fab Kills . | . . . . Hacking | -11 -10 -10 -7 --------- Run | Yrd Mat Sub Scr Machines Accessed 4 | . 1 . 3 Terminals 1 | . 1 . . Fabricators . | . . . . Repair Stations . | . . . . Recycling Units . | . . . . Scanalyzers . | . . . . Garrison Access . | . . . . Total Hacks 9 | . 1 . 8 Successful 9 | . 1 . 8 Failed . | . . . . Catastrophic . | . . . . Database Lockouts . | . . . . Manual 1 | . 1 . . Terminals 1 | . 1 . . Fabricators . | . . . . Repair Stations . | . . . . Recycling Units . | . . . . Scanalyzers . | . . . . Garrison Access . | . . . . Terminal Hacks 9 | . 1 . 8 Record 8 | . . . 8 Recall Reinforcements 1 | . 1 . . Fabricator Hacks . | . . . . Repair Station Hacks . | . . . . Recycling Unit Hacks . | . . . . Scanalyzer . | . . . . Garrison Access Hacks . | . . . . Unauthorized Hacks . | . . . . Terminals . | . . . . Fabricators . | . . . . Repair Stations . | . . . . Recycling Units . | . . . . Scanalyzers . | . . . . Garrison Access . | . . . . Data Cores Recovered . | . . . . Used . | . . . . Hacking Detections . | . . . . Full Trace Events . | . . . . Feedback Events . | . . . . Feedback Blocked . | . . . . Robot Schematics Acquired . | . . . . Robots Built . | . . . . Authchips . | . . . . Time . | . . . . Total Robot Build Rating . | . . . . Part Schematics Acquired . | . . . . Parts Built . | . . . . Authchips . | . . . . Time . | . . . . Total Part Build Rating . | . . . . Parts Repaired . | . . . . Time . | . . . . Parts Recycled . | . . . . Recycled Matter . | . . . . Retrieved Matter . | . . . . Retrieved Components . | . . . . Parts Scanalyzed . | . . . . Part Schematics Acquired . | . . . . Parts Damaged . | . . . . Bothacking | -11 -10 -10 -7 ------------ Run | Yrd Mat Sub Scr Used RIF Installer . | . . . . Robots Hacked . | . . . . Non-combat . | . . . . Combat . | . . . . Robot Hacks Applied . | . . . . Relay Couplers Released . | . . . . Fabnet Peak Effective % . | . . . . Robots Rewired . | . . . . Allies Hacked . | . . . . Hacks Repelled . | . . . . Allies | -11 -10 -10 -7 -------- Run | Yrd Mat Sub Scr Total Allies . | . . . . Largest Group . | . . . . Highest-Rated Group . | . . . . Highest-Rated Ally . | . . . . Total Orders . | . . . . Ally Attacks . | . . . . Total Damage . | . . . . Kills . | . . . . Allies Corrupted . | . . . . Allies Melted . | . . . . Intel | -11 -10 -10 -7 ------- Run | Yrd Mat Sub Scr Active Infowar (turns) 1 | 1 . . . ECM 1 | 1 . . . Robot Analysis Total . | . . . . Derelict Logs Recovered . | . . . . Drone Launches . | . . . . Drone Recoveries . | . . . . Exploration | -11 -10 -10 -7 ------------- Run | Yrd Mat Sub Scr Turns Passed 3724 | 154 1331 11 2228 Spaces Moved 1880 | 100 690 6 1084 Core 24 | 24 . . . Treads . | . . . . Legs 1856 | 76 690 6 1084 Wheels . | . . . . Hover . | . . . . Flight . | . . . . Fastest Speed 50 | 50 120 190 120 Average Speed 181 | 122 179 190 188 Slowest Speed 200 | 200 190 190 190 Overloaded Moves . | . . . . Propulsion Burnouts . | . . . . Robots Hopped . | . . . . Potential Cave-ins . | . . . . Cave-ins Triggered . | . . . . Exploration Rate (%) 42 | 6 87 2 73 Regions Visited 3 Branch Regions 2 Pre-discovered Areas . | . . . . Known Exits Taken 2 | 1 1 . . Unknown Exits Taken 1 | . . 1 . Scrap Searched 2 | . . . 2 Spaces Dug . | . . . . Terrain Destroyed 5 | 3 2 . . Melee . | . . . . Projectile . | . . . . AOE 5 | 3 2 . . Terrain Rammed . | . . . . Walls Destroyed . | . . . . Machines Disabled . | . . . . Actions | -11 -10 -10 -7 --------- Run | Yrd Mat Sub Scr Total 2156 | 121 762 6 1267 Wait 184 | . 28 . 156 Move 1877 | 99 689 5 1084 Hop . | . . . . Pick Up 24 | 3 14 . 7 Fast Attach 17 | 11 4 . 2 Attach 3 | . 1 . 2 Detach 1 | . . . 1 Swap 5 | . 2 1 2 Drop 23 | 4 9 . 10 Fire 16 | 3 13 . . Melee 3 | . . . 3 Ram . | . . . . Kick 3 | 1 2 . . Crush . | . . . . Escape Stasis . | . . . . Rewire . | . . . . Trap . | . . . . Miscellaneous . | . . . . Route ------- -11/Scrapyard -10/Materials (discovered 6 exits: *Mat x3 / *Min x2 / *Sub) -10/Subcaves -7/Scraptown (discovered 1 exit: *Fac) History --------- Turn | Location | Event 4 | -11/Scrapyard | Identified exit to Materials 4 | -11/Scrapyard | Discovered exit to Materials (range 15) 155 | -11/Scrapyard | Entered Materials 155 | -10/Materials | Evolved 1 slot: Utility x1 232 | -10/Materials | Identified exit to Mines 232 | -10/Materials | Discovered exit to Mines (range 15) 320 | -10/Materials | Build established: Hacker-Mutant 342 | -10/Materials | Identified exit to Materials 342 | -10/Materials | Discovered exit to Materials (range 14) 585 | -10/Materials | Discovered exit to Mines (range 8) 841 | -10/Materials | Discovered exit to Materials (range 16) 1182 | -10/Materials | Discovered exit to Materials (range 8) 1422 | -10/Materials | Identified exit to Subcaves 1422 | -10/Materials | Discovered exit to Subcaves (range 8) 1486 | -10/Materials | Entered Subcaves 1487 | -10/Subcaves | Approached by a straggling Scientist 1488 | -10/Subcaves | Scientist uncovered a shortcut to Scraptown 1497 | -10/Subcaves | Entered Scraptown 1513 | -7/Scraptown | System corruption cleaned by C-Scrubber 2102 | -7/Scraptown | Identified exit to Factory 2102 | -7/Scraptown | Discovered exit to Factory (range 11) 2382 | -7/Scraptown | Visited Red Mages 2517 | -7/Scraptown | Visited UFD Registry 2517 | -7/Scraptown | Registered with UFD as "Beamchip" 2679 | -7/Scraptown | Visited Observation Area 2996 | -7/Scraptown | Visited Scrap Suit Storage 3232 | -7/Scraptown | Met Optimus 3232 | -7/Scraptown | Accepted into 0bPrime 3632 | -7/Scraptown | Civil war broke out across Scraptown 3725 | -7/Scraptown | Self-destructed Last Messages --------------- 03693_ HQ-CND(j) destroyed. 03698_ Destroyed Imp. Hover Unit. 03698_ Destroyed Mak. Hacking Suite. 03698_ S4-JPD(p) system corrupted by crushing effect. 03698_ S4-JPD(p) knocked back. 03698_ 9Z-RUI(j) suffers critical hit (Burn). 03704_ KG-TLB(E) destroyed. 03706_ JE-J1R(j) switches sides. 03706_ Destroyed Imp. Hover Unit. 03706_ S4-JPD(p) system corrupted by crushing effect. 03707_ S4-JPD(p) system terminally corrupted. 03707_ EM Pulse Gun fried. 03707_ Lrg. Battery fried. 03707_ EM Pulse Gun fried. 03711_ 0bJail breached. 03714_ Slug penetrates Wall. 03719_ Critical hit (Burn: +37). 03722_ Penetrated by Slug. Map ----- +----------------------------------------------------+ | ?????????????# #???# #? #???????????????????????? | | ?# ########### ##### ## ##??????????????????????? | | "" """""""" !" """"" "" "#??????????????????????? | | %! [% = "#???? "????????????????? | | * ! "#??? "#???????????????? | | [ "#?? !"#???????????????? | | "## "#???????????????? | | "#???????????????? | | """""""""""""""""""" "## "#???????????????? | | """""""""""""""""""" "#??""""#???????????????? | | ################"" "#???##?????????????????? | | ##????????#"" "#############??????????? | | X"#????????#"" "## #"""""#""#??????????? | | "" ##????????#"" "## ! !! !#??????????? | | "" X"#??????###"" "## #??????????? | | " ######### #"" != "## #??????????? | | "" [%= X" #??????????? | | "" =%j! "## ##"#??????????? | | " ######### #""%[! ## !! ! #?????????????? | | "" ""#??????###"" "## #"""""#?????????????? | | "" ##????????#"" "##############?????????? | | X"#????????#"" "## """"""""""#?????????? | | ##????????#"" "## " "#?????????? | | ################"" "## """""" "#?????????? | | """"""""""""""""""" !=!"## "?? " "#?????????? | | """""""""""""""""""" *%!@b %" " "#?????????? | | ![="## Yx " "#?????????? | | [== *[ "## """""" "#?????????? | | &%*[!%= "## "#?????????? | | !![%! !*% !=## """""""""#?????????? | | !%!!%= / %=%#############?????????? | | """" """""""""""=" """" !=##?????????????????????? | | #### ###########%###### !#??????????????????????? | | ?? ??????? ! ???# #??????????????????????? | | ? ?????" """??# #??????????????????????? | | " "" "???"" """"#?# #??????????????????????? | | " "" "???!" """#?# #??????????????????????? | | " ??""" """#?# #??????????????????????? | | """ ""???" ""???# ############???????????? | | "" ??"""????"""""????# #???????????? | | ?? ?????????""""?????# ##???????????? | | ?? ??????????????????# #???????????? | | ???"??????????????????# #???????????? | | ??????????????????????# #???????????? | | ??????????????????????# ############???????????? | | ####################### #####??????????????????? | | ""##"""##"""##"""##"|"# """"#??????????????????? | | ""##" "##"""##"" ##" # "" "#??????????????????? | | "#??????????????????? | | " "#??????????????????? | +----------------------------------------------------+ Best States ------------- Heat Dissipation 25 Energy Generation 10 Energy Capacity 250 Matter Stores 300 Matter Capacity 300 Sight Range 16 Terrain Scan Density 10 Armor Coverage 450 Resistance: KI 35 Resistance: TH 35 Resistance: EX 35 Resistance: EM 35 Resistance: I 35 Resistance: S 35 Resistance: P 35 Utility Shielding 33 Evasion (%) 55 Offensive Hacking 20 Item Schematics ----------------- None Robot Schematics ------------------ None Fabricated ------------ Nothing Repaired ---------- Nothing Alien Tech Used ----------------- None Achievements -------------- Use The Force Challenges ------------ None Game ------ Seed BladePlexusDriver Manual? 0 Play Time 00:16:08 Cumulative 78.4 hours Start 2025.06.19 @ 11:11:59 End 2025.06.19 @ 12:39:40 Sessions 3 Manual Loads 0 Difficulty Explorer Special Mode None Game No. 48 Rogue 1 Adventurer 26 Explorer 21 Win Type - Total 3 Types 2/0/1/0/0/0/0/0/0/0 Lore% 19 Gallery% 46 Achievement% 45 Wizard Run 0 Options --------- Layout 1 ASCII 0 Keyboard 0 Movement Arrows Keybinds 0 Fullscreen 1 Font 36/Smallcaps Map View 50x40 Zoom Use 0% Tactical HUD 1 Map Filters NONE Filters NONE Steam 1 RUN: dfcdbb31-cc49-4f58-ac27-b7c91bc00cd0